fUST/lending_fUST_20250707
["ID","MTS","AMOUNT","RATE_DAILY","PERIOD"]
[370061013,1751871051694,-460.0,0.00017733,2]
[370061014,1751871051703,-460.0,0.00017733,2]
[370061015,1751871051713,-468.93635739,0.00017733,2]
[370061016,1751871051723,-460.0,0.00017733,2]
[370061017,1751871051732,-460.0,0.00017733,2]
[370061018,1751871051741,-284.24804853,0.00017733,2]
[370061019,1751871051751,-460.0,0.00017733,2]
[370061020,1751871051760,-439.47507918,0.00017733,2]
[370061021,1751871051770,-460.0,0.00017733,2]
[370061022,1751871051779,-460.0,0.00017733,2]
[370061023,1751871051788,-2138.69,0.00017733,2]
[370061024,1751871051798,-460.0,0.00017733,2]
[370061025,1751871051808,-460.0,0.00017733,2]
[370061026,1751871051818,-460.0,0.00017733,2]
[370061027,1751871051827,-460.0,0.00017734,2]
[370061028,1751871051837,-442.31031078,0.00017734,2]
[370061029,1751871051846,-204.49722278,0.00017734,2]
[370061030,1751871051856,-460.0,0.00017735,2]
[370061031,1751871051866,-460.0,0.00017735,2]
[370061032,1751871051875,-460.0,0.00017735,2]
[370061033,1751871051884,-460.0,0.00017736,2]
[370061034,1751871051894,-460.0,0.00017736,2]
[370061035,1751871051903,-460.0,0.00017736,2]
[370061036,1751871051912,-368.84293636,0.00017736,2]
[370061037,1751871051922,-460.0,0.00017736,2]
[370061038,1751871051932,-460.0,0.00017736,2]
[370061039,1751871051941,-402.36,0.00017736,2]
[370061040,1751871051950,-461.37576427,0.00017736,2]
[370061041,1751871051960,-462.84358409,0.00017736,2]
[370061042,1751871051970,-472.21,0.00017736,2]
[370061043,1751871051979,-460.0,0.00017736,2]
[370061044,1751871051988,-460.0,0.00017736,2]
[370061045,1751871051998,-460.0,0.00017736,2]
[370061046,1751871052007,-460.0,0.00017736,2]
[370061047,1751871052017,-655.44,0.00017736,2]
[370061048,1751871052026,-460.0,0.00017736,2]
[370061049,1751871052035,-998.72,0.00017736,2]
[370061050,1751871052044,-557.73,0.00017736,2]
[370061051,1751871052053,-460.0,0.00017736,2]
[370061052,1751871052063,-460.0,0.00017736,2]
[370061053,1751871052072,-460.0,0.00017736,2]
[370061054,1751871052081,-850.57,0.00017736,2]
[370061055,1751871052090,-557.14,0.00017737,2]
[370061056,1751871052100,-460.0,0.00017737,2]
[370061057,1751871052109,-460.0,0.00017737,2]
[370061058,1751871052118,-1900.15248066,0.000178,2]
[370061059,1751871052127,-1900.15248053,0.000178,2]
[370061060,1751871052137,-1900.15248053,0.000178,2]
[370061061,1751871052146,-1900.15248053,0.00017831,2]
[370061062,1751871052155,-553.5,0.00017837,2]
[370061063,1751871052164,-460.0,0.00017837,2]
[370061064,1751871052173,-460.0,0.00017837,2]
[370061065,1751871052182,-460.0,0.00017837,2]
[370061066,1751871052191,-460.0,0.00017837,2]
[370061067,1751871052200,-460.0,0.00017837,2]
[370061068,1751871052210,-460.0,0.00017837,2]
[370061069,1751871052219,-460.0,0.00017837,2]
[370061070,1751871052229,-460.0,0.00017837,2]
[370061071,1751871052238,-460.0,0.00017837,2]
[370061072,1751871052248,-565.42656212,0.00017837,2]
[370061073,1751871052257,-460.0,0.00017837,2]
[370061074,1751871052267,-460.0,0.00017837,2]
[370061075,1751871052276,-460.0,0.00017837,2]
[370061076,1751871052286,-460.0,0.00017837,2]
[370061077,1751871052295,-464.75569049,0.00017837,2]
[370061078,1751871052304,-460.0,0.00017837,2]
[370061079,1751871052314,-462.31439806,0.00017837,2]
[370061080,1751871052323,-460.0,0.00017837,2]
[370061081,1751871052332,-444.0,0.00017837,2]
[370061082,1751871052342,-460.0,0.00017837,2]
[370061083,1751871052351,-460.0,0.00017837,2]
[370061084,1751871052360,-460.0,0.00017837,2]
[370061085,1751871052369,-460.0,0.00017837,2]
[370061086,1751871052379,-460.0,0.00017837,2]
[370061087,1751871052388,-390.65,0.00017837,2]
[370061088,1751871052397,-524.57860669,0.00017837,2]
[370061089,1751871052407,-460.0,0.00017837,2]
[370061090,1751871052415,-355.62658508,0.00017837,2]
[370061091,1751871052424,-460.0,0.00017837,2]
[370061092,1751871052433,-460.0,0.00017837,2]
[370061093,1751871052443,-460.0,0.00017838,2]
[370061094,1751871052452,-460.0,0.00017838,2]
[370061095,1751871052462,-460.0,0.00017838,2]
[370061096,1751871052501,-460.0,0.00017838,2]
[370061097,1751871052510,-460.0,0.00017838,2]
[370061098,1751871052519,-460.0,0.00017838,2]
[370061099,1751871052529,-2518.92,0.00017838,2]
[370061100,1751871052538,-732.15,0.00017838,2]
[370061101,1751871052547,-333.11,0.00017838,2]
[370061102,1751871052557,-460.0,0.00018005,2]
[370061103,1751871052566,-460.0,0.00018005,2]
[370061104,1751871052575,-663.36,0.00018005,2]
[370061105,1751871052584,-460.0,0.00018005,2]
[370061106,1751871052594,-1368.31,0.00018005,2]
[370061107,1751871052603,-1357.6,0.00018005,2]
[370061108,1751871052612,-460.0,0.00018005,2]
[370061109,1751871052625,-667.62,0.00018005,2]
[370061110,1751871052634,-460.0,0.00018005,2]
[370061111,1751871052643,-460.0,0.00018005,2]
[370061112,1751871052653,-601.29,0.00018005,2]
[370061113,1751871052737,-460.0,0.00018005,2]
[370061114,1751871052748,-460.0,0.00018005,2]
[370061115,1751871052757,-460.0,0.00018005,2]
[370061116,1751871052766,-460.0,0.00018005,2]
[370061117,1751871052776,-460.0,0.00018005,2]
[370061118,1751871052785,-460.0,0.00018005,2]
[370061119,1751871052795,-213.94,0.00018006,2]
[370061120,1751871052804,-908.89,0.00018006,2]
[370061121,1751871052813,-894.6,0.00018006,2]
[370061122,1751871052823,-1259.56,0.00018006,2]
[370061123,1751871052832,-460.0,0.00018007,2]
[370061124,1751871052841,-460.0,0.00018007,2]
[370061125,1751871052850,-399.75599549,0.00018007,2]
[370061126,1751871052860,-460.0,0.00018007,2]
[370061127,1751871052869,-460.0,0.00018007,2]
[370061128,1751871052878,-460.0,0.00018007,2]
[370061129,1751871052888,-460.0,0.00018007,2]
[370061130,1751871052896,-460.0,0.00018007,2]
[370061131,1751871052906,-460.0,0.00018007,2]
[370061132,1751871052915,-460.0,0.00018007,2]
[370061133,1751871052924,-460.0,0.00018007,2]
[370061134,1751871052934,-460.0,0.00018007,2]
[370061135,1751871052943,-931.87,0.00018007,2]
[370061136,1751871052953,-460.0,0.00018007,2]
[370061137,1751871052963,-460.0,0.00018007,2]
[370061138,1751871052972,-460.0,0.00018007,2]
[370061139,1751871052982,-460.0,0.00018007,2]
[370061140,1751871052992,-503.7352821,0.00018007,2]
[370061141,1751871053002,-460.0,0.00018007,2]
[370061142,1751871053012,-415.84,0.00018007,2]
[370061143,1751871053021,-460.0,0.00018007,2]
[370061144,1751871053031,-2138.69,0.00018007,2]
[370061145,1751871053040,-460.0,0.00018007,2]
[370061146,1751871053050,-460.0,0.00018007,2]
[370061147,1751871053061,-460.0,0.00018007,2]
[370061148,1751871053083,-390.58641382,0.00018008,2]
[370061149,1751871053093,-500.0,0.00018009,2]
[370061150,1751871053104,-500.0,0.00018009,2]
[370061151,1751871053114,-500.22985756,0.00018009,2]
[370061152,1751871053124,-500.62017214,0.00018009,2]
[370061153,1751871053134,-500.27171992,0.00018009,2]
[370061154,1751871053144,-160.21940151,0.00018009,2]
[370061155,1751871053154,-500.79322298,0.00018009,2]
[370061156,1751871053164,-160.23026225,0.00018009,2]
[370061157,1751871053173,-258.71414731,0.00018009,2]
[370061158,1751871053183,-160.21867717,0.00018009,2]
[370061159,1751871053193,-160.17681006,0.00018009,2]
[370061160,1751871053204,-500.81618797,0.00018009,2]
[370061161,1751871053214,-502.22444836,0.00018009,2]
[370061162,1751871053223,-500.0,0.00018009,2]
[370061163,1751871053232,-500.76187743,0.00018009,2]
[370061164,1751871053242,-500.0,0.00018009,2]
[370061165,1751871053252,-419.21275063,0.00018009,2]
[370061166,1751871053261,-501.01682281,0.00018009,2]
[370061167,1751871053272,-501.06359683,0.00018009,2]
[370061168,1751871053283,-500.0,0.00018009,2]
[370061169,1751871053292,-501.15663313,0.00018009,2]
[370061170,1751871053302,-500.0,0.00018009,2]
[370061171,1751871053312,-500.0,0.00018009,2]
[370061172,1751871053321,-524.06599004,0.00018009,2]
[370061173,1751871053331,-491.35193784,0.00018009,2]
[370061174,1751871053341,-460.0,0.00018009,2]
[370061175,1751871053351,-460.0,0.00018009,2]
[370061176,1751871053361,-460.0,0.0001801,2]
[370061177,1751871053371,-365.46710189,0.0001801,2]
[370061178,1751871053380,-460.0,0.0001801,2]
[370061179,1751871053391,-460.0,0.0001801,2]
[370061180,1751871053402,-460.0,0.0001801,2]
[370061181,1751871053412,-472.21,0.0001801,2]
[370061182,1751871053423,-460.0,0.0001801,2]
[370061183,1751871053433,-460.0,0.0001801,2]
[370061184,1751871053442,-460.0,0.0001801,2]
[370061185,1751871053451,-655.44,0.0001801,2]
[370061186,1751871053461,-460.0,0.0001801,2]
[370061187,1751871053473,-998.72,0.0001801,2]
[370061188,1751871053483,-557.73,0.0001801,2]
[370061189,1751871053492,-460.0,0.0001801,2]
[370061190,1751871053501,-460.0,0.0001801,2]
[370061191,1751871053511,-460.0,0.0001801,2]
[370061192,1751871053521,-850.57,0.0001801,2]
[370061193,1751871053530,-464.54321129,0.00018011,2]
[370061194,1751871053539,-160.52209609,0.00018011,2]
[370061195,1751871053556,-460.0,0.00018111,2]
[370061196,1751871053565,-460.0,0.00018111,2]
[370061197,1751871053576,-460.0,0.00018111,2]
[370061198,1751871053585,-460.0,0.00018111,2]
[370061199,1751871053594,-460.0,0.00018111,2]
[370061200,1751871053603,-460.0,0.00018111,2]
[370061201,1751871053614,-460.0,0.00018111,2]
[370061202,1751871053625,-460.0,0.00018111,2]
[370061203,1751871053635,-460.0,0.00018111,2]
[370061204,1751871053646,-414.51637382,0.00018111,2]
[370061205,1751871053655,-313.06581795,0.00018111,2]
[370061206,1751871053666,-458.12,0.00018111,2]
[370061207,1751871053675,-460.0,0.00018111,2]
[370061208,1751871053685,-460.0,0.00018111,2]
[370061209,1751871053697,-460.0,0.00018111,2]
[370061210,1751871053708,-460.0,0.00018111,2]
[370061211,1751871053719,-507.12380399,0.00018111,2]
[370061212,1751871053729,-460.0,0.00018112,2]
[370061213,1751871053739,-460.0,0.00018112,2]
[370061214,1751871053748,-460.0,0.00018112,2]
[370061215,1751871053758,-460.0,0.00018112,2]
[370061216,1751871053769,-460.0,0.00018112,2]
[370061217,1751871053778,-2518.92,0.00018112,2]
[370061218,1751871053787,-732.15,0.00018112,2]
[370061219,1751871053796,-1900.15248053,0.00018141,2]
[370061220,1751871053806,-172.046631,0.00018168,2]
[370061221,1751871053815,-1500.0,0.00018168,2]
[370061222,1751871053824,-1146.68652668,0.00018168,2]
[370061223,1751871053833,-1500.0,0.00018268,2]
[370061224,1751871053843,-1014.94841246,0.00018268,2]
[370061225,1751871053853,-1504.94424202,0.00018268,2]
[370061226,1751871053862,-1007.31039173,0.00018268,2]
[370061227,1751871053872,-500.7661814,0.00018268,2]
[370061228,1751871053880,-392.54,0.00018276,3]
[370061229,1751871053890,-327.1,0.00018276,3]
[370061230,1751871053899,-554.09,0.00018279,2]
[370061231,1751871053909,-460.0,0.00018279,2]
[370061232,1751871053919,-663.36,0.00018279,2]
[370061233,1751871053930,-460.0,0.00018279,2]
[370061234,1751871053940,-1368.31,0.00018279,2]
[370061235,1751871053951,-1357.6,0.00018279,2]
[370061236,1751871053962,-240.89852275,0.00018279,2]
[370061237,1751871053972,-667.62,0.00018279,2]
[370061238,1751871053981,-250.61482591,0.00018279,2]
[370061239,1751871053991,-460.0,0.00018279,2]
[370061240,1751871054001,-601.29,0.00018279,2]
[370061241,1751871054011,-460.0,0.00018279,2]
[370061242,1751871054022,-460.0,0.00018279,2]
[370061243,1751871054032,-460.0,0.00018279,2]
[370061244,1751871054043,-460.0,0.00018279,2]
[370061245,1751871054054,-460.0,0.00018279,2]
[370061246,1751871054063,-908.89,0.0001828,2]
[370061247,1751871054072,-894.6,0.0001828,2]
[370061248,1751871054083,-1259.56,0.0001828,2]
[370061249,1751871054092,-444.22932818,0.00018281,2]
[370061250,1751871054102,-460.0,0.00018281,2]
[370061251,1751871054111,-460.0,0.00018281,2]
[370061252,1751871054121,-460.0,0.00018281,2]
[370061253,1751871054130,-460.0,0.00018281,2]
[370061254,1751871054139,-460.0,0.00018281,2]
[370061255,1751871054149,-460.0,0.00018281,2]
[370061256,1751871054158,-460.0,0.00018281,2]
[370061257,1751871054167,-931.87,0.00018281,2]
[370061258,1751871054176,-460.0,0.00018281,2]
[370061259,1751871054186,-460.0,0.00018281,2]
[370061260,1751871054195,-460.0,0.00018281,2]
[370061261,1751871054205,-2138.69,0.00018281,2]
[370061262,1751871054215,-460.0,0.00018281,2]
[370061263,1751871054227,-460.0,0.00018281,2]
[370061264,1751871054308,-460.0,0.00018281,2]
[370061265,1751871054318,-469.536146,0.00018283,2]
[370061266,1751871054328,-460.0,0.00018283,2]
[370061267,1751871054339,-460.0,0.00018284,2]
[370061268,1751871054351,-460.0,0.00018284,2]
[370061269,1751871054362,-460.0,0.00018284,2]
[370061270,1751871054372,-463.08728124,0.00018284,2]
[370061271,1751871054382,-472.21,0.00018284,2]
[370061272,1751871054392,-460.0,0.00018284,2]
[370061273,1751871054401,-460.0,0.00018284,2]
[370061274,1751871054410,-655.44,0.00018284,2]
[370061275,1751871054422,-460.0,0.00018284,2]
[370061276,1751871054432,-998.72,0.00018284,2]
[370061277,1751871054442,-557.73,0.00018284,2]
[370061278,1751871054453,-460.0,0.00018284,2]
[370061279,1751871054463,-460.0,0.00018284,2]
[370061280,1751871054473,-460.0,0.00018284,2]
[370061281,1751871054483,-850.57,0.00018284,2]
[370061282,1751871054492,-222.300344,0.00018302,2]
[370061283,1751871054501,-1915.27677942,0.00018362,2]
[370061284,1751871054511,-365.02,0.00018385,2]
[370061285,1751871054520,-460.0,0.00018385,2]
[370061286,1751871054529,-460.0,0.00018385,2]
[370061287,1751871054539,-460.0,0.00018385,2]
[370061288,1751871054548,-460.0,0.00018385,2]
[370061289,1751871054558,-460.0,0.00018385,2]
[370061290,1751871054569,-460.0,0.00018385,2]
[370061291,1751871054578,-427.31,0.00018385,2]
[370061292,1751871054588,-460.0,0.00018385,2]
[370061293,1751871054598,-222.300344,0.00018386,2]
[370061294,1751871054607,-460.0,0.00018386,2]
[370061295,1751871054618,-460.0,0.00018386,2]
[370061296,1751871054629,-460.0,0.00018386,2]
[370061297,1751871054639,-460.0,0.00018386,2]
[370061298,1751871054649,-2518.92,0.00018386,2]
[370061299,1751871054659,-732.15,0.00018386,2]
[370061300,1751871054670,-1900.15248053,0.00018452,2]
[370061301,1751871054679,-420.0,0.00018469,2]
[370061302,1751871054689,-222.300344,0.00018469,2]
[370061303,1751871054699,-151.0,0.000185,2]
[370061304,1751871054709,-663.36,0.00018553,2]
[370061305,1751871054718,-460.0,0.00018553,2]
[370061306,1751871054727,-1368.31,0.00018553,2]
[370061307,1751871054737,-1357.6,0.00018553,2]
[370061308,1751871054746,-667.62,0.00018553,2]
[370061309,1751871054756,-460.0,0.00018553,2]
[370061310,1751871054766,-460.0,0.00018553,2]
[370061311,1751871054775,-284.86551872,0.00018553,2]
[370061312,1751871054784,-460.0,0.00018553,2]
[370061313,1751871054793,-222.300344,0.00018553,2]
[370061314,1751871054803,-908.89,0.00018554,2]
[370061315,1751871054813,-894.6,0.00018554,2]
[370061316,1751871054822,-1259.56,0.00018554,2]
[370061317,1751871054831,-601.92313938,0.00018555,2]
[370061318,1751871054840,-460.0,0.00018555,2]
[370061319,1751871054850,-460.0,0.00018555,2]
[370061320,1751871054859,-411.32477099,0.00018555,2]
[370061321,1751871054868,-575.67751499,0.00018555,2]
[370061322,1751871054878,-460.0,0.00018555,2]
[370061323,1751871054887,-460.0,0.00018555,2]
[370061324,1751871054896,-931.87,0.00018555,2]
[370061325,1751871054906,-460.0,0.00018555,2]
[370061326,1751871054915,-460.0,0.00018555,2]
[370061327,1751871054924,-460.0,0.00018555,2]
[370061328,1751871054933,-2138.69,0.00018555,2]
[370061329,1751871054943,-460.0,0.00018555,2]
[370061330,1751871054952,-460.0,0.00018555,2]
[370061331,1751871054961,-500.0,0.00018557,2]
[370061332,1751871054971,-503.73528866,0.00018557,2]
[370061333,1751871054980,-460.0,0.00018557,2]
[370061334,1751871054990,-460.0,0.00018558,2]
[370061335,1751871055000,-460.0,0.00018558,2]
[370061336,1751871055009,-472.21,0.00018558,2]
[370061337,1751871055018,-460.0,0.00018558,2]
[370061338,1751871055027,-655.44,0.00018558,2]
[370061339,1751871055037,-460.0,0.00018558,2]
[370061340,1751871055046,-998.72,0.00018558,2]
[370061341,1751871055056,-557.73,0.00018558,2]
[370061342,1751871055065,-460.0,0.00018558,2]
[370061343,1751871055074,-460.0,0.00018558,2]
[370061344,1751871055084,-236.4749129,0.00018558,2]
[370061345,1751871055093,-850.57,0.00018558,2]
[370061346,1751871055102,-222.300344,0.00018637,2]
[370061347,1751871055111,-460.0,0.00018659,2]
[370061348,1751871055120,-377.32009654,0.00018659,2]
[370061349,1751871055129,-460.0,0.00018659,2]
[370061350,1751871055139,-460.0,0.00018659,2]
[370061351,1751871055148,-460.0,0.00018659,2]
[370061352,1751871055158,-460.0,0.0001866,2]
[370061353,1751871055167,-460.0,0.0001866,2]
[370061354,1751871055176,-460.0,0.0001866,2]
[370061355,1751871055186,-2518.92,0.0001866,2]
[370061356,1751871055195,-732.15,0.0001866,2]
[370061357,1751871055204,-160.0,0.00018674,2]
[370061358,1751871055213,-160.0,0.00018674,2]
[370061359,1751871055223,-160.0,0.00018674,2]
[370061360,1751871055232,-160.0,0.00018674,2]
[370061361,1751871055241,-848.27993403,0.00018674,2]
[370061362,1751871055250,-160.0,0.00018674,2]
[370061363,1751871055260,-837.79946008,0.00018674,2]
[370061364,1751871055269,-160.0,0.00018674,2]
[370061365,1751871055278,-214.06929976,0.00018674,2]
[370061366,1751871055287,-160.0,0.00018674,2]
[370061367,1751871055296,-160.0,0.00018674,2]
[370061368,1751871055305,-230.48668418,0.00018674,2]
[370061369,1751871055315,-215.21338352,0.00018674,2]
[370061370,1751871055324,-524.98484073,0.00018674,2]
[370061371,1751871055333,-160.0,0.00018674,2]
[370061372,1751871055342,-12584.46609586,0.00018674,2]
[370061373,1751871055351,-151.0,0.000187,2]
[370061374,1751871055360,-1510.43596752,0.00018716,2]
[370061375,1751871055369,-222.300344,0.00018721,2]
[370061376,1751871055379,-1900.15248053,0.00018762,2]
[370061377,1751871055387,-222.300344,0.00018804,2]
[370061378,1751871055397,-663.36,0.00018827,2]
[370061379,1751871055406,-460.0,0.00018827,2]
[370061380,1751871055415,-1368.31,0.00018827,2]
[370061381,1751871055424,-1357.6,0.00018827,2]
[370061382,1751871055433,-667.62,0.00018827,2]
[370061383,1751871055442,-300.81,0.00018827,2]
[370061384,1751871055450,-460.0,0.00018827,2]
[370061385,1751871055459,-460.0,0.00018827,2]
[370061386,1751871055469,-908.89,0.00018828,2]
[370061387,1751871055478,-894.6,0.00018828,2]
[370061388,1751871055487,-1259.56,0.00018828,2]
[370061389,1751871055497,-250.48946723,0.00018829,2]
[370061390,1751871055506,-460.0,0.00018829,2]
[370061391,1751871055515,-460.0,0.00018829,2]
[370061392,1751871055524,-460.0,0.00018829,2]
[370061393,1751871055533,-931.87,0.00018829,2]
[370061394,1751871055542,-460.0,0.00018829,2]
[370061395,1751871055551,-460.0,0.00018829,2]
[370061396,1751871055561,-460.0,0.00018829,2]
[370061397,1751871055570,-2138.69,0.00018829,2]
[370061398,1751871055579,-460.0,0.00018829,2]
[370061399,1751871055588,-460.0,0.00018829,2]
[370061400,1751871055597,-460.0,0.00018832,2]
[370061401,1751871055607,-460.0,0.00018832,2]
[370061402,1751871055683,-472.21,0.00018832,2]
[370061403,1751871055694,-655.44,0.00018832,2]
[370061404,1751871055704,-460.0,0.00018832,2]
[370061405,1751871055713,-998.72,0.00018832,2]
[370061406,1751871055723,-557.73,0.00018832,2]
[370061407,1751871055733,-460.0,0.00018832,2]
[370061408,1751871055744,-460.0,0.00018832,2]
[370061409,1751871055754,-850.57,0.00018832,2]
[370061410,1751871055764,-500.0,0.00018886,2]
[370061411,1751871055773,-501.85223198,0.00018886,2]
[370061412,1751871055785,-153.49223589,0.00018886,2]
[370061413,1751871055794,-290.43601306,0.00018886,2]
[370061414,1751871055805,-160.2186279,0.00018886,2]
[370061415,1751871055814,-501.21964427,0.00018886,2]
[370061416,1751871055823,-319.81999037,0.00018886,2]
[370061417,1751871055832,-500.0,0.00018886,2]
[370061418,1751871055842,-160.22377676,0.00018886,2]
[370061419,1751871055852,-160.22291142,0.00018886,2]
[370061420,1751871055862,-222.300344,0.00018888,2]
[370061421,1751871055871,-1081.92754355,0.000189,2]
[370061422,1751871055881,-514.75697613,0.00018933,2]
[370061423,1751871055890,-460.0,0.00018933,2]
[370061424,1751871055899,-460.0,0.00018933,2]
[370061425,1751871055909,-460.0,0.00018934,2]
[370061426,1751871055918,-460.0,0.00018934,2]
[370061427,1751871055927,-507.65,0.00018934,2]
[370061428,1751871055937,-2518.92,0.00018934,2]
[370061429,1751871055946,-732.15,0.00018934,2]
[370061430,1751871055955,-500.93316458,0.00018941,2]
[370061431,1751871055964,-501.65315535,0.00018941,2]
[370061432,1751871055975,-198.52158594,0.00018941,2]
[370061433,1751871055984,-222.300344,0.00018972,2]
[370061434,1751871055994,-151.0,0.00019,2]
[370061435,1751871056003,-222.300344,0.00019056,2]
[370061436,1751871056012,-1900.15248053,0.00019072,2]
[370061437,1751871056023,-1915.27677942,0.00019093,2]
[370061438,1751871056032,-500.0,0.00019093,2]
[370061439,1751871056043,-663.36,0.00019101,2]
[370061440,1751871056053,-460.0,0.00019101,2]
[370061441,1751871056065,-1368.31,0.00019101,2]
[370061442,1751871056074,-1357.6,0.00019101,2]
[370061443,1751871056084,-667.62,0.00019101,2]
[370061444,1751871056094,-460.0,0.00019101,2]
[370061445,1751871056104,-460.0,0.00019101,2]
[370061446,1751871056113,-908.89,0.00019102,2]
[370061447,1751871056122,-894.6,0.00019102,2]
[370061448,1751871056131,-1259.56,0.00019102,2]
[370061449,1751871056141,-460.0,0.00019103,2]
[370061450,1751871056151,-460.0,0.00019103,2]
[370061451,1751871056160,-931.87,0.00019103,2]
[370061452,1751871056171,-460.0,0.00019103,2]
[370061453,1751871056181,-460.0,0.00019103,2]
[370061454,1751871056191,-460.0,0.00019103,2]
[370061455,1751871056200,-2138.69,0.00019103,2]
[370061456,1751871056212,-460.0,0.00019103,2]
[370061457,1751871056221,-460.0,0.00019106,2]
[370061458,1751871056231,-521.92431419,0.00019106,2]
[370061459,1751871056241,-472.21,0.00019106,2]
[370061460,1751871056251,-655.44,0.00019106,2]
[370061461,1751871056260,-460.0,0.00019106,2]
[370061462,1751871056269,-998.72,0.00019106,2]
[370061463,1751871056281,-557.73,0.00019106,2]
[370061464,1751871056290,-557.16746967,0.00019106,2]
[370061465,1751871056299,-469.92945925,0.00019106,2]
[370061466,1751871056309,-850.57,0.00019106,2]
[370061467,1751871056318,-222.300344,0.00019139,2]
[370061468,1751871056327,-254.00738904,0.00019178,2]
[370061469,1751871056336,-789.697455,0.00019178,2]
[370061470,1751871056346,-666.0,0.00019178,2]
[370061471,1751871056355,-460.0,0.00019207,2]
[370061472,1751871056365,-460.0,0.00019207,2]
[370061473,1751871056374,-460.0,0.00019208,2]
[370061474,1751871056383,-460.0,0.00019208,2]
[370061475,1751871056393,-2518.92,0.00019208,2]
[370061476,1751871056402,-732.15,0.00019208,2]
[370061477,1751871056411,-222.300344,0.00019223,2]
[370061478,1751871056420,-222.300344,0.00019307,2]
[370061479,1751871056430,-100000.0,0.00019329,2]
[370061480,1751871056439,-663.36,0.00019375,2]
[370061481,1751871056449,-460.0,0.00019375,2]
[370061482,1751871056458,-1368.31,0.00019375,2]
[370061483,1751871056468,-1357.6,0.00019375,2]
[370061484,1751871056477,-667.62,0.00019375,2]
[370061485,1751871056488,-460.0,0.00019375,2]
[370061486,1751871056498,-460.0,0.00019375,2]
[370061487,1751871056511,-460.0,0.00019376,2]
[370061488,1751871056523,-460.0,0.00019376,2]
[370061489,1751871056533,-931.87,0.00019376,2]
[370061490,1751871056543,-460.0,0.00019376,2]
[370061491,1751871056555,-460.0,0.00019376,2]
[370061492,1751871056565,-908.89,0.00019376,2]
[370061493,1751871056575,-460.0,0.00019376,2]
[370061494,1751871056585,-894.6,0.00019376,2]
[370061495,1751871056594,-2138.69,0.00019376,2]
[370061496,1751871056604,-460.0,0.00019376,2]
[370061497,1751871056614,-1259.56,0.00019376,2]
[370061498,1751871056626,-460.0,0.0001938,2]
[370061499,1751871056635,-472.21,0.0001938,2]
[370061500,1751871056645,-655.44,0.0001938,2]
[370061501,1751871056655,-460.0,0.0001938,2]
[370061502,1751871056664,-998.72,0.0001938,2]
[370061503,1751871056675,-557.73,0.0001938,2]
[370061504,1751871056685,-850.57,0.0001938,2]
[370061505,1751871056696,-1900.15248053,0.00019383,2]
[370061506,1751871056706,-222.300344,0.00019391,2]
[370061507,1751871056715,-1001.71811265,0.00019434,2]
[370061508,1751871056725,-222.300344,0.00019474,2]
[370061509,1751871056734,-460.0,0.00019481,2]
[370061510,1751871056743,-545.96087573,0.00019481,2]
[370061511,1751871056753,-460.0,0.00019482,2]
[370061512,1751871056762,-460.0,0.00019482,2]